bitfinex/quotes_SOLUSD_20220113
["timestamp","ask_amount","ask_price","bid_price","bid_amount"]
[1642090365135,2.597,154.07,153.86,7.79929]
[1642090365337,7.82,154.08,153.87,7.82]
[1642090365538,2.597,154.07,153.88,64.88]
[1642090365839,2.597,154.07,153.93,64.88]
[1642090366036,2.597,154.13,153.93,79.21]
[1642090366436,2.596,154.15,153.93,79.21]
[1642090367136,64.88,154.13,153.88,7.79828]
[1642090367335,64.88,154.11,153.89,147.4957]
[1642090367537,10.417,154.1,153.89,163.11347]
[1642090367936,15.68323126,154.09,153.9,17.50213156]
[1642090368137,15.68323126,154.09,153.98,9.7391]
[1642090368341,2.596,154.08,153.98,9.7391]
[1642090368537,3.106,154.08,153.98,9.9891]
[1642090369139,3.106,154.08,153.98,9.7391]
[1642090369340,67.986,154.08,153.98,9.7391]
[1642090369541,3.106,154.08,153.98,9.7391]
[1642090370140,85.5442,154.08,153.96,9.7403]
[1642090370339,91.5442,154.08,153.94,6.0]
[1642090370944,91.5442,154.08,153.89,23.3173]
[1642090370945,91.5442,154.08,153.89,29.3173]
[1642090371140,91.5442,154.08,153.9,13.51754719]
[1642090371541,91.5442,154.08,153.9,51.99114719]
[1642090371942,91.5442,154.08,153.9,19.51754719]
[1642090372141,102.42798526,154.08,153.9,19.51754719]
[1642090372342,91.5442,154.08,153.9,19.51754719]
[1642090372943,91.5442,154.08,153.9,19.76754719]
[1642090373546,91.2842,154.08,153.9,20.02754719]
[1642090374244,91.2842,154.08,153.93,17.36737561]
[1642090374444,91.2842,154.08,153.93,17.62737561]
[1642090374644,91.2842,154.08,153.93,0.26]
[1642090374846,102.42798526,154.08,153.91,6.0]
[1642090375046,108.95198526,154.08,153.91,6.0]
[1642090375546,108.95198526,154.08,153.87,16.46047364]
[1642090375947,206.65198526,154.08,153.88,9.7455]
[1642090376248,206.65198526,154.08,153.83,104.0147]
[1642090376448,97.7,154.06,153.83,79.4932]
[1642090376646,9.7467,153.95,153.83,79.4932]
[1642090376846,7.82,153.96,153.78,47.2487]
[1642090377046,0.25,153.95,153.78,56.9957]
[1642090377246,17.31218134,153.95,153.79,19.17154101]
[1642090377648,9.7475,153.92,153.79,19.17154101]
[1642090377847,15.30599257,153.91,153.79,19.17154101]
[1642090378051,15.30599257,153.91,153.81,9.747]
[1642090378249,15.56599257,153.91,153.81,9.747]
[1642090378550,15.56599257,153.91,153.71,99.62716217]
[1642090378551,7.82,153.9,153.71,99.62716217]
[1642090378752,2.6,153.89,153.71,75.04386217]
[1642090378949,7.82,153.88,153.73,9.7548]
[1642090379148,2.6,153.87,153.71,0.32516217]
[1642090379350,25.21659758,153.86,153.72,15.68536325]
[1642090379548,2.6,153.85,153.72,15.68536325]
[1642090379748,7.82,153.84,153.83,3.68529257]
[1642090380147,7.82,153.88,153.83,9.7496925]
[1642090380349,2.6,153.92,153.83,9.7496925]
[1642090380647,13.82,153.92,153.83,9.7496925]
[1642090380847,9.7483,153.91,153.83,6.06439993]
[1642090381048,14.38299811,153.9,153.83,6.31439993]
[1642090381750,14.38299811,153.9,153.83,6.06439993]
[1642090381951,9.7492,153.9,153.83,6.06439993]
[1642090382350,7.82,153.92,153.83,15.81309993]
[1642090382755,7.82,153.92,153.84,14.79931486]
[1642090382956,10.419,153.95,153.84,15.30931486]
[1642090383155,93.08846429,153.96,153.84,15.30931486]
[1642090383156,17.81836429,153.96,153.84,15.30931486]
[1642090383354,17.81836429,153.96,153.84,21.30931486]
[1642090383555,2.599,154.0,153.86,9.7467]
[1642090383759,7.82,154.0,153.86,9.7467]
[1642090383954,7.82,154.0,153.86,16.2567]
[1642090384356,6.0,154.0,153.86,16.2567]
[1642090384555,17.64295181,153.99,153.87,15.06517702]
[1642090384755,27.38665181,153.99,153.9,9.7441]
[1642090384954,33.63665181,153.99,153.9,9.9941]
[1642090385156,27.63665181,153.99,153.9,27.10654824]
[1642090385355,27.38665181,153.99,153.9,9.9941]
[1642090386481,2.598,154.01,153.9,29.94554235]
[1642090386681,2.598,154.05,153.98,9.7381]
[1642090386883,2.596,154.09,153.98,9.7381]
[1642090387081,111.4924,154.1,153.98,16.2481]
[1642090387281,2.596,154.09,153.98,16.2481]
[1642090387481,14.47431635,154.08,153.98,15.9881]
[1642090387682,14.47431635,154.08,153.93,3.68529257]
[1642090387683,24.21241635,154.08,153.93,3.68529257]
[1642090387883,2.597,154.07,153.93,3.68529257]
[1642090388183,2.597,154.07,153.96,9.7406]
[1642090388383,14.47431635,154.08,153.96,9.7406]
[1642090388584,14.47431635,154.08,153.96,33.67190377]
[1642090388985,14.47431635,154.08,153.96,33.92190377]
[1642090390185,14.47431635,154.08,153.96,33.67190377]
[1642090391489,14.47431635,154.08,153.96,33.92190377]
[1642090392390,14.47431635,154.08,153.97,64.88]
[1642090392590,14.73431635,154.08,154.02,9.737]
[1642090392791,0.32,154.08,154.02,9.737]
[1642090392989,0.06,154.08,154.02,9.987]
[1642090393391,0.06,154.08,154.02,10.247]
[1642090393589,0.06,154.08,154.02,16.247]
[1642090393792,0.06,154.08,154.03,13.78109701]
[1642090393990,0.06,154.08,154.05,9.7317]
[1642090394290,0.06,154.08,154.06,20.47692008]
[1642090394490,2.596,154.2,154.06,26.98692008]
[1642090394890,2.595,154.23,154.06,26.98692008]
[1642090395091,189.4228,154.24,154.07,17.5518]
[1642090395291,72.6935,154.24,154.07,17.5518]
[1642090395493,2.594,154.26,154.07,25.55954623]
[1642090395792,2.81531007,154.27,154.09,0.31025092]
[1642090395991,2.81531007,154.27,154.1,7.82]
[1642090396192,2.81531007,154.27,154.16,64.88]
[1642090396394,2.81531007,154.27,154.17,7.82]
[1642090396591,20.92158149,154.27,154.18,7.82]
[1642090396791,18.10627142,154.27,154.17,6.51]
[1642090396995,18.10627142,154.27,154.12,7.82]
[1642090397192,2.594,154.26,154.14,0.25]
[1642090397392,2.594,154.26,154.17,9.7268]
[1642090397594,2.854,154.26,154.17,9.7268]
[1642090397794,2.854,154.26,154.11,15.34590817]
[1642090397998,3.104,154.26,154.11,15.34590817]
[1642090398497,9.104,154.26,154.07,47.5358]
[1642090398698,7.82,154.25,154.04,3.68529257]
[1642090398898,2.594,154.24,154.04,3.68529257]
[1642090399097,64.88,154.22,154.04,3.68529257]
[1642090399298,10.415,154.21,154.04,3.68529257]
[1642090399498,9.7348,154.14,154.01,3.68529257]
[1642090399698,18.42649506,154.13,154.03,15.32148226]
[1642090399900,18.42649506,154.13,154.01,3.68529257]
[1642090400098,15.83049506,154.13,154.01,3.68529257]
[1642090400298,16.08049506,154.13,154.01,9.68529257]
[1642090400498,16.08049506,154.13,154.04,9.735]
[1642090400499,25.81509506,154.13,154.04,9.735]
[1642090400698,2.595,154.12,154.04,9.735]
[1642090400898,2.595,154.12,154.04,9.985]
[1642090401099,3.105,154.12,154.04,0.25]
[1642090401300,0.51,154.12,154.04,0.25]
[1642090401508,0.25,154.12,154.04,0.25]
[1642090401705,9.9857,154.12,154.0,6.0]
[1642090401906,10.416,154.11,153.9,32.4847]
[1642090402106,10.666,154.11,153.9,24.6647]
[1642090402305,16.666,154.11,153.88,1.5618795]
[1642090402505,16.926,154.11,153.88,0.06]
[1642090402706,18.8112375,154.1,153.91,9.6341]
[1642090402905,10.417,154.09,153.91,9.6341]
[1642090403106,10.927,154.09,153.91,9.6341]
[1642090403405,16.927,154.09,153.9,27.22559984]
[1642090403806,9.7404,154.04,153.9,27.22559984]
[1642090404004,20.42689821,154.03,153.9,27.22559984]
[1642090404236,64.88,154.02,153.9,9.6463]
[1642090404528,80.903,154.02,153.88,0.06]
[1642090404729,2.598,154.01,153.88,0.06]
[1642090404932,7.82,154.0,153.88,0.06]
[1642090405130,2.598,153.99,153.88,0.06]
[1642090405331,35.32535596,153.98,153.88,0.06]
[1642090405533,67.478,153.97,153.88,0.06]
[1642090405731,75.298,153.97,153.88,0.06]
[1642090405930,16.668,153.97,153.88,0.06]
[1642090406130,10.418,153.97,153.88,0.06]
[1642090406331,10.418,153.97,153.88,9.8051]
[1642090406531,7.82,153.97,153.88,9.8051]
[1642090406736,7.82,153.97,153.88,0.06]
[1642090407533,17.565,153.97,153.88,0.06]
[1642090407732,23.565,153.97,153.88,0.06]
[1642090407941,18.82412806,153.95,153.88,0.06]
[1642090408133,26.64412806,153.95,153.88,0.06]
[1642090408339,33.15412806,153.95,153.88,0.06]
[1642090408636,9.7495,153.92,153.88,0.06]
[1642090408835,17.27884673,153.91,153.88,0.06]
[1642090409035,17.52884673,153.91,153.88,0.06]
[1642090409237,17.78884673,153.91,153.88,0.06]
[1642090410236,9.7492,153.9,153.88,0.06]
[1642090410436,17.27884673,153.91,153.88,0.06]
[1642090410836,7.82,153.98,153.89,6.06439993]
[1642090411036,7.82,153.98,153.89,6.31439993]
[1642090411237,7.82,153.98,153.89,6.06439993]
[1642090411441,17.5642,153.98,153.89,15.80839993]
[1642090411640,17.5642,153.98,153.89,6.06439993]
[1642090411841,18.7595831,153.97,153.89,6.06439993]
[1642090412642,18.7595831,153.97,153.88,0.06]
[1642090412839,9.7465,153.95,153.88,0.06]
[1642090413039,9.9965,153.95,153.88,0.06]
[1642090413539,15.9965,153.95,153.88,0.06]
[1642090413738,14.54114106,153.94,153.88,0.06]
[1642090413938,21.05114106,153.94,153.88,0.06]
[1642090414139,9.7487,153.91,153.88,0.06]
[1642090414539,10.2587,153.91,153.84,1.83630022]
[1642090414742,0.51,153.91,153.8,1.83630022]
[1642090414942,0.25,153.91,153.8,1.83630022]
[1642090415142,9.7509,153.87,153.8,11.58660022]
[1642090415344,16.32938442,153.91,153.8,11.58660022]
[1642090415542,0.26,153.87,153.8,11.58660022]
[1642090415742,0.26,153.87,153.8,9.7503]
[1642090416142,22.58938442,153.91,153.8,9.7503]
[1642090416543,16.58938442,153.91,153.8,9.7503]
[1642090417049,35.1036,153.9,153.78,11.58740022]
[1642090417244,32.5046,153.9,153.78,17.58740022]
[1642090417443,6.51,153.9,153.78,17.58740022]
[1642090417645,18.92938442,153.91,153.79,17.78821614]
[1642090417844,16.07938442,153.91,153.79,17.78821614]
[1642090418044,9.7483,153.92,153.79,23.78821614]
[1642090418244,275.1984,153.96,153.81,9.7483]
[1642090418545,118.8566,153.96,153.81,16.2583]
[1642090418946,124.8566,153.96,153.81,10.2583]
[1642090419148,32.4961,153.94,153.81,10.2583]
[1642090419346,32.4961,153.94,153.82,16.22148497]
[1642090419648,13.54761151,153.95,153.82,32.47718497]
[1642090419849,0.26,153.94,153.82,32.47718497]
[1642090420046,13.54761151,153.95,153.82,32.47718497]
[1642090420247,13.54761151,153.95,153.83,7.82]
[1642090420452,13.54761151,153.95,153.87,32.4782]
[1642090420847,13.54761151,153.95,153.87,38.9882]
[1642090421148,13.54761151,153.95,153.89,9.7435]
[1642090421547,13.54761151,153.95,153.89,10.2535]
[1642090422750,13.54761151,153.95,153.89,9.9935]
[1642090422988,13.54761151,153.95,153.84,32.483]
[1642090422989,19.80761151,153.95,153.88,9.7454]
[1642090423151,19.80761151,153.95,153.83,1.83630022]
[1642090423351,2.599,153.94,153.82,1.83630022]
[1642090423550,9.109,153.94,153.82,1.83630022]
[1642090424049,14.75903785,153.91,153.82,11.58520022]
[1642090424451,15.01903785,153.91,153.82,11.58520022]
[1642090424654,15.01903785,153.91,153.82,11.84520022]
[1642090424851,15.01903785,153.91,153.82,10.0089]
[1642090425050,21.26903785,153.91,153.78,48.259]
[1642090425252,2.6,153.9,153.78,48.259]
[1642090425653,9.11,153.9,153.78,48.259]
[1642090425855,3.11,153.9,153.79,13.98496271]
[1642090426055,0.51,153.9,153.79,13.98496271]
[1642090426254,0.51,153.9,153.82,15.17066428]
[1642090426554,0.26,153.91,153.82,15.68066428]
[1642090426753,7.82,153.94,153.82,15.43066428]
[1642090426954,6.0,153.94,153.82,21.43066428]
[1642090427159,6.0,153.94,153.82,21.17066428]
[1642090427354,2.599,153.97,153.82,21.43066428]
[1642090427355,8.599,153.97,153.82,21.43066428]
[1642090427654,13.84813419,153.93,153.82,21.43066428]
[1642090428055,19.84813419,153.93,153.82,6.26]
[1642090428255,9.7476,153.92,153.82,9.9984]
[1642090428455,8.599,153.92,153.82,9.9984]
[1642090428656,8.849,153.92,153.82,0.25]
[1642090428855,9.109,153.92,153.8,2.08630022]
[1642090429060,6.51,153.92,153.82,1.83630022]
[1642090429255,9.109,153.92,153.82,1.83630022]
[1642090429456,9.109,153.92,153.82,2.08630022]
[1642090430257,27.27127587,153.88,153.82,0.25]
[1642090430487,27.53127587,153.88,153.81,2.08630022]
[1642090430891,33.53127587,153.88,153.81,2.08630022]
[1642090431092,27.53127587,153.88,153.81,2.08630022]
[1642090431292,17.78127587,153.88,153.81,11.83590022]
[1642090431692,35.0931,153.95,153.81,11.83590022]
[1642090431893,6.0,153.93,153.81,11.83590022]
[1642090432093,87.2234,153.98,153.81,18.09590022]
[1642090432392,9.7467,153.94,153.84,1.83630022]
[1642090432593,15.7467,153.94,153.85,9.7469]
[1642090432794,15.56447796,153.93,153.85,9.7469]
[1642090432994,21.56447796,153.93,153.85,0.25]
[1642090433190,21.56447796,153.93,153.72,75.7493]
[1642090433191,156.88,153.91,153.68,9.19518229]
[1642090433391,64.88,153.77,153.71,0.32516217]
[1642090433592,2.601,153.76,153.71,0.32516217]
[1642090433790,6.221,153.76,153.71,0.32516217]
[1642090433990,16.48244732,153.75,153.71,0.32516217]
[1642090434191,10.421,153.75,153.71,0.32516217]
[1642090434394,2.861,153.75,153.71,0.32516217]
[1642090434793,0.26,153.75,153.71,0.32516217]
[1642090435093,0.25,153.75,153.71,0.32516217]
[1642090435292,0.25,153.75,153.71,6.217e-05]
[1642090435293,37.0,153.74,153.71,6.217e-05]
[1642090435491,35.0,153.73,153.68,0.03791311]
[1642090435890,6.25,153.73,153.68,0.03791311]
[1642090436092,6.51,153.73,153.68,0.03791311]
[1642090436291,2.601,153.77,153.68,0.03791311]
[1642090436491,0.26,153.77,153.68,0.03791311]
[1642090437093,64.88,153.76,153.68,0.03791311]
[1642090437491,32.5374,153.75,153.68,0.03791311]
[1642090437893,9.7608,153.72,153.68,0.03791311]
[1642090438093,10.2708,153.72,153.68,0.03791311]
[1642090438292,0.51,153.72,153.68,0.03791311]
[1642090438493,0.25,153.72,153.68,0.03791311]
[1642090439095,6.51,153.75,153.68,0.03791311]
[1642090439594,6.25,153.75,153.68,0.03791311]
[1642090440097,9.7608,153.71,153.68,0.03791311]
[1642090440299,35.3891,153.75,153.68,0.03791311]
[1642090440493,38.7871,153.75,153.68,0.03791311]
[1642090440694,7.82,153.77,153.68,0.03791311]
[1642090441496,9.7581,153.76,153.68,14.38533862]
[1642090441695,7.82,153.77,153.68,14.38533862]
[1642090442099,13.87186541,153.76,153.68,14.38533862]
[1642090442297,21.69186541,153.76,153.68,0.03791311]
[1642090442598,9.7608,153.71,153.68,0.03791311]
[1642090442995,10.0208,153.71,153.68,0.03791311]
[1642090443196,10.2708,153.71,153.68,0.03791311]
[1642090443996,9.7613,153.7,153.68,0.03791311]
[1642090444396,10.0213,153.7,153.68,0.03791311]
[1642090444797,32.5387,153.74,153.68,0.03791311]
[1642090444996,10.422,153.76,153.68,0.03791311]
[1642090445197,7.82,153.79,153.68,0.03791311]
[1642090445599,13.82,153.79,153.68,0.03791311]
[1642090445896,17.20531033,153.78,153.68,0.03791311]
[1642090446098,9.7613,153.7,153.68,0.03791311]
[1642090447098,9.762,153.69,153.68,0.03791311]
[1642090447499,10.022,153.69,153.68,0.03791311]
[1642090448099,10.022,153.69,153.68,0.00791311]
[1642090448298,10.272,153.69,153.68,0.00791311]
[1642090448498,92.0,153.68,153.52,108.9155]
[1642090448698,9.7672,153.61,153.52,108.9155]
[1642090448902,9.7672,153.61,153.52,9.8854]
[1642090449199,10.0272,153.61,153.52,9.8854]
[1642090449398,10.0272,153.61,153.53,17.32795848]
[1642090449598,10.424,153.68,153.53,27.09495848]
[1642090449800,7.82,153.68,153.54,64.88]
[1642090450000,7.82,153.68,153.54,6.51]
[1642090450200,152.9566,153.71,153.54,6.51]
[1642090450201,79.0125,153.71,153.54,6.51]
[1642090450505,2.603,153.74,153.54,14.33]
[1642090450702,9.7587,153.74,153.59,9.7581]
[1642090450902,26.17342306,153.74,153.6,19.18804851]
[1642090451101,16.41472306,153.74,153.6,25.43804851]
[1642090451501,15.91472306,153.74,153.6,25.18804851]
[1642090451701,56.27292306,153.74,153.61,9.7587]
[1642090451901,56.53292306,153.74,153.61,9.7587]
[1642090452103,67.482,153.73,153.61,15.7587]
[1642090452303,7.82,153.72,153.61,6.0]
[1642090452504,19.74485727,153.71,153.6,25.18804851]
[1642090453006,26.25485727,153.71,153.6,25.18804851]
[1642090453807,56.19535727,153.71,153.61,9.7631]
[1642090454009,56.19535727,153.71,153.61,16.0131]
[1642090454911,2.603,153.7,153.68,30.744532]
[1642090455117,9.7633,153.69,153.68,9.614532]
[1642090455314,9.7633,153.69,153.61,6.0]
[1642090455315,7.82,153.69,153.61,6.0]
[1642090455515,14.07,153.69,153.59,6.0]
[1642090455714,14.07,153.69,153.56,31.0041]
[1642090456113,9.7644,153.65,153.56,31.0041]
[1642090456413,9.7644,153.65,153.57,17.13530962]
[1642090456617,10.0244,153.65,153.57,23.38530962]
[1642090457234,10.0244,153.65,153.58,9.7647]
[1642090457636,10.0244,153.65,153.58,16.0147]
[1642090458936,0.26,153.65,153.58,16.0147]
[1642090459439,39.0607,153.68,153.58,16.0147]
[1642090459637,46.6207,153.68,153.58,16.0147]
[1642090459837,40.6207,153.68,153.58,16.2747]
[1642090460040,8.07,153.68,153.58,16.2747]
[1642090460640,8.07,153.68,153.58,16.0247]
[1642090461539,14.07,153.68,153.58,16.0247]
[1642090461739,8.07,153.68,153.58,16.0247]
[1642090462538,8.07,153.68,153.58,15.7647]
[1642090462738,14.07,153.68,153.58,6.0]
[1642090462942,14.33,153.68,153.58,6.0]
[1642090463141,14.33,153.68,153.57,23.13530962]
[1642090463339,2.603,153.67,153.57,6.0]
[1642090463539,7.82,153.66,153.53,29.325]
[1642090463740,9.7674,153.61,153.54,9.7668]
[1642090463939,32.5571,153.65,153.54,9.7668]
[1642090464139,32.5571,153.65,153.58,3.7145478]
[1642090464340,38.8071,153.65,153.58,3.7145478]
[1642090464741,9.7682,153.59,153.58,4.78e-05]
[1642090465140,74.8982,153.59,153.52,9.8854]
[1642090465342,65.39,153.59,153.52,9.8854]
[1642090465645,65.39,153.59,153.41,159.2011]
[1642090465646,79.21,153.59,153.41,159.2011]
[1642090465841,13.77618064,153.58,153.47,16.91161374]
[1642090466041,9.7717,153.54,153.47,16.91161374]
[1642090466242,9.7717,153.54,153.47,26.68311374]
[1642090466541,0.51,153.54,153.43,1.53649602]
[1642090466942,0.25,153.54,153.43,1.53649602]
[1642090467341,0.25,153.54,153.44,15.82631593]
[1642090467342,13.80650022,153.52,153.44,15.82631593]
[1642090467542,14.05650022,153.52,153.44,15.82631593]
[1642090468147,0.25,153.52,153.44,15.82631593]
[1642090468343,9.7734,153.51,153.44,25.60031593]
[1642090468744,7.82,153.54,153.44,25.85031593]
[1642090468945,14.07,153.54,153.44,25.35031593]
[1642090469348,9.7732,153.52,153.44,25.35031593]
[1642090469546,10.0232,153.52,153.44,25.36031593]
[1642090469745,0.25,153.52,153.44,25.36031593]
[1642090469945,0.25,153.52,153.44,25.10031593]
[1642090470149,0.25,153.52,153.44,15.32631593]
[1642090470547,9.7746,153.5,153.44,21.32631593]
[1642090471047,2.866,153.53,153.44,21.32631593]
[1642090471246,7.82,153.54,153.45,1.55705551]
[1642090471447,86.9426,153.61,153.45,1.81705551]
[1642090471748,84.3376,153.61,153.45,40.37785551]
[1642090471946,21.21524485,153.6,153.45,40.62785551]
[1642090472147,7.82,153.59,153.47,14.12768495]
[1642090472547,7.82,153.59,153.48,9.7693]
[1642090472947,7.82,153.59,153.48,16.2793]
[1642090473146,7.82,153.59,153.49,1.55705551]
[1642090473547,7.82,153.59,153.5,17.15055443]
[1642090473747,22.69013851,153.59,153.5,17.15055443]
[1642090474046,9.771,153.56,153.5,17.15055443]
[1642090474548,7.82,153.59,153.5,17.15055443]
[1642090474747,0.26,153.56,153.5,26.92045443]
[1642090475047,7.82,153.59,153.5,26.92045443]
[1642090475247,2.605,153.62,153.5,27.17045443]
[1642090475448,7.82,153.65,153.51,1.55705551]
[1642090475951,7.82,153.65,153.51,7.80705551]
[1642090476147,16.53299077,153.64,153.51,7.80705551]
[1642090476347,16.53299077,153.64,153.54,15.89334178]
[1642090476548,16.53299077,153.64,153.47,9.37705551]
[1642090476549,19.13699077,153.64,153.47,9.37705551]
[1642090476748,7.82,153.63,153.47,8.08]
[1642090477046,2.605,153.62,153.47,13.82]
[1642090477247,7.82,153.61,153.48,9.7685]
[1642090477448,19.98802168,153.6,153.48,24.5799857]
[1642090477647,10.675,153.61,153.48,30.5799857]
[1642090477848,8.07,153.61,153.48,32.13704121]
[1642090478049,7.82,153.61,153.48,32.13704121]
[1642090478248,7.82,153.61,153.48,32.38704121]
[1642090478452,9.7667,153.63,153.49,72.7]
[1642090478650,58.58988705,153.66,153.49,82.4659]
[1642090478850,18.81020857,153.63,153.51,18.53320772]
[1642090479050,2.604,153.62,153.51,24.79320772]
[1642090479249,18.81020857,153.63,153.51,24.79320772]
[1642090479450,2.604,153.62,153.51,24.79320772]
[1642090479650,2.604,153.62,153.51,24.53320772]
[1642090480050,2.854,153.62,153.52,9.7681]
[1642090480250,3.114,153.62,153.52,9.7681]
[1642090480453,3.114,153.62,153.52,15.7681]
[1642090480650,3.114,153.62,153.52,9.7681]
[1642090481252,9.7682,153.6,153.52,9.7681]
[1642090481452,10.0282,153.6,153.52,9.7681]
[1642090481653,27.67650977,153.6,153.52,9.7681]
[1642090481851,27.67650977,153.6,153.52,15.7681]
[1642090482252,27.67650977,153.6,153.52,9.7681]
[1642090482453,10.2782,153.6,153.52,10.0281]
[1642090482654,10.2782,153.6,153.52,9.7681]
[1642090482855,64.88,153.59,153.44,34.7069]
[1642090483055,7.82,153.58,153.44,40.7069]
[1642090483456,8.33,153.58,153.44,42.26794785]
[1642090483860,8.33,153.58,153.45,48.28933981]
[1642090484056,8.33,153.58,153.45,54.53933981]
[1642090484457,8.08,153.58,153.45,54.53933981]
[1642090484658,8.08,153.58,153.45,61.95868231]
[1642090484856,8.33,153.58,153.45,61.95868231]
[1642090485058,8.08,153.58,153.45,61.70868231]
[1642090485257,64.88,153.57,153.45,29.13968231]
[1642090485458,18.53753225,153.56,153.45,38.91178231]
[1642090485658,26.35753225,153.56,153.45,38.91178231]
[1642090485858,9.7722,153.53,153.45,38.41178231]
[1642090486165,0.26,153.53,153.45,38.41178231]
[1642090486358,0.26,153.53,153.45,30.99243981]
[1642090486559,0.26,153.53,153.45,6.0]
[1642090486762,32.86753225,153.56,153.45,6.0]
[1642090486960,9.7734,153.51,153.44,15.7737]
[1642090487359,0.26,153.51,153.44,15.7737]
[1642090488060,13.83242904,153.51,153.44,16.0237]
[1642090488460,14.09242904,153.51,153.44,10.0237]
[1642090488663,14.09242904,153.51,153.44,9.7737]
[1642090488860,14.09242904,153.51,153.43,7.44010666]
[1642090489161,14.34242904,153.51,153.43,7.44010666]
[1642090489360,16.94842904,153.51,153.41,0.09]
[1642090489561,14.34242904,153.51,153.41,0.09]
[1642090489761,14.09242904,153.51,153.41,18.13394653]
[1642090489961,0.26,153.51,153.41,18.13394653]
[1642090490364,8.08,153.52,153.42,9.7751]
[1642090490562,8.33,153.52,153.41,18.13394653]
[1642090490762,67.486,153.51,153.41,18.13394653]
[1642090490963,15.33950361,153.5,153.41,18.13394653]
[1642090491363,15.58950361,153.5,153.41,18.13394653]
[1642090491567,9.7753,153.48,153.41,27.90974653]
[1642090491764,9.7753,153.48,153.41,28.15974653]
[1642090491964,23.40950361,153.5,153.41,34.15974653]
[1642090492164,29.40950361,153.5,153.41,24.13394653]
[1642090492364,64.88,153.49,153.41,6.09]
[1642090492567,103.98,153.49,153.41,0.09]
[1642090493068,71.39,153.49,153.41,0.09]
[1642090493669,2.606,153.48,153.41,0.09]
[1642090493865,15.41798127,153.47,153.41,0.09]
[1642090494066,0.25,153.47,153.41,0.09]
[1642090494467,72.95,153.47,153.41,0.09]
[1642090494867,78.95,153.47,153.41,0.09]
[1642090495274,2.606,153.46,153.36,5.56859366]
[1642090495574,9.7816,153.38,153.36,5.56859366]
[1642090495772,9.7816,153.38,153.36,9.366e-05]
[1642090495973,64.88,153.37,153.36,9.366e-05]
[1642090496373,65.39,153.37,153.36,9.366e-05]
[1642090496574,88.9943,153.37,153.36,9.366e-05]
[1642090496975,88.9943,153.37,153.3,7.40885896]
[1642090497177,93.75000086,153.37,153.3,7.40885896]
[1642090497375,14.33,153.37,153.3,7.40885896]
[1642090497574,14.08,153.37,153.3,17.19165896]
[1642090497783,7.82,153.4,153.3,17.19165896]
[1642090497994,7.82,153.4,153.3,25.01913239]
[1642090498197,7.82,153.4,153.3,17.61027343]
[1642090498395,7.82,153.4,153.31,17.58143389]
[1642090498596,7.82,153.4,153.31,23.83143389]
[1642090498896,25.40486954,153.4,153.31,17.58143389]
[1642090499095,64.88,153.39,153.31,17.58143389]
[1642090499297,7.82,153.38,153.31,17.58143389]
[1642090499496,8.07,153.38,153.26,48.0927]
[1642090499795,9.784,153.35,153.26,63.8764]
[1642090500094,0.26,153.35,153.26,15.7837]
[1642090500301,0.51,153.35,153.26,15.7837]
[1642090500494,0.51,153.35,153.27,14.84958261]
[1642090500695,9.7833,153.36,153.28,9.7842]
[1642090500896,0.26,153.36,153.28,9.7842]
[1642090501198,7.82,153.41,153.28,15.7842]
[1642090501397,7.82,153.42,153.28,15.7842]
[1642090501797,7.82,153.42,153.28,16.0442]
[1642090501996,7.82,153.42,153.28,16.2942]
[1642090502195,7.82,153.42,153.28,81.1742]
[1642090502396,7.82,153.42,153.3,15.66376196]
[1642090502596,24.35846542,153.43,153.31,9.7792]
[1642090502996,24.35846542,153.43,153.31,16.0292]